[Event "Titled Tuesday Blitz May 11 2021"]
[White "Ivic, Velimir"]
[Black "Xiong, Jeffery"]
[WhiteFideId "950122"]
[BlackFideId "2047640"]
[WhiteElo "2509"]
[BlackElo "2724"]
[Result "0-1"]
[Round "09"]
[TimeControl "180+1"]
[Date "2021.05.11"]
[WhiteClock "0:00:03"]
[BlackClock "0:01:30"]

1. e4 {[%clk 0:03:00]}  Nf6 {[%clk 0:02:47]} 2. e5 {[%clk 0:03:00]}  Nd5 {[%clk 0:02:47]} 3. d4 {[%clk 0:03:01]}  d6 {[%clk 0:02:47]} 4. c4 {[%clk 0:03:01]}  Nb6 {[%clk 0:02:48]} 5. f4 {[%clk 0:03:02]}  Bf5 {[%clk 0:02:46]} 6. Nc3 {[%clk 0:03:00]}  e6 {[%clk 0:02:46]} 7. Be3 {[%clk 0:02:59]}  dxe5 {[%clk 0:02:45]} 8. fxe5 {[%clk 0:03:00]}  Be7 {[%clk 0:02:43]} 9. Nf3 {[%clk 0:03:00]}  Nc6 {[%clk 0:02:44]} 10. Be2 {[%clk 0:02:59]}  f6 {[%clk 0:02:44]} 11. exf6 {[%clk 0:02:59]}  Bxf6 {[%clk 0:02:45]} 12. O-O {[%clk 0:03:00]}  Qd7 {[%clk 0:02:45]} 13. d5 {[%clk 0:02:42]}  exd5 {[%clk 0:02:41]} 14. cxd5 {[%clk 0:02:42]}  Ne7 {[%clk 0:02:38]} 15. Qb3 {[%clk 0:02:16]}  O-O-O {[%clk 0:02:24]} 16. Rfd1 {[%clk 0:02:13]}  Rhe8 {[%clk 0:02:24]} 17. d6 {[%clk 0:01:45]}  Bxc3 {[%clk 0:02:04]} 18. dxe7 {[%clk 0:01:13]}  Qxe7 {[%clk 0:02:01]} 19. Rxd8+ {[%clk 0:01:11]}  Rxd8 {[%clk 0:02:00]} 20. Bxb6 {[%clk 0:00:18]}  axb6 {[%clk 0:02:01]} 21. Qxc3 {[%clk 0:00:18]}  Qxe2 {[%clk 0:02:00]} 22. Nd4 {[%clk 0:00:10]}  Qe5 {[%clk 0:01:50]} 23. Nxf5 {[%clk 0:00:04]}  Qxf5 {[%clk 0:01:51]} 24. Qxg7 {[%clk 0:00:03]}  Qc5+ {[%clk 0:01:39]} 25. Kh1 {[%clk 0:00:03]}  Qd4 {[%clk 0:01:40]} 26. Qxd4 {[%clk 0:00:02]}  Rxd4 {[%clk 0:01:41]} 27. Rf1 {[%clk 0:00:02]}  Rd2 {[%clk 0:01:40]} 28. h4 {[%clk 0:00:03]}  Rxb2 {[%clk 0:01:38]} 29. Rf8+ {[%clk 0:00:03]}  Kd7 {[%clk 0:01:39]} 30. Rf7+ {[%clk 0:00:04]}  Kd6 {[%clk 0:01:40]} 31. Rxh7 {[%clk 0:00:05]}  Rxa2 {[%clk 0:01:40]} 32. h5 {[%clk 0:00:06]}  b5 {[%clk 0:01:40]} 33. h6 {[%clk 0:00:04]}  b4 {[%clk 0:01:34]} 34. Rg7 {[%clk 0:00:03]}  b3 {[%clk 0:01:33]} 35. h7 {[%clk 0:00:03]}  Ra8 {[%clk 0:01:33]} 36. Rg8 {[%clk 0:00:03]}  b2 {[%clk 0:01:34]} 37. h8=Q {[%clk 0:00:01]}  b1=Q+ {[%clk 0:01:34]} 38. Kh2 {[%clk 0:00:01]}  Rxg8 {[%clk 0:01:35]} 39. Qxg8 {[%clk 0:00:02]}  Qf5 {[%clk 0:01:35]} 40. Qd8+ {[%clk 0:00:02]}  Kc6 {[%clk 0:01:35]} 41. Qa8 {[%clk 0:00:02]}  Kb6 {[%clk 0:01:33]} 42. Kg3 {[%clk 0:00:02]}  c5 {[%clk 0:01:33]} 43. Qd8+ {[%clk 0:00:02]}  Kc6 {[%clk 0:01:33]} 44. Kh4 {[%clk 0:00:03]}  Qh7+ {[%clk 0:01:31]} 45. Kg5 {[%clk 0:00:03]}  Qg7+ {[%clk 0:01:31]} 46. Kf5 {[%clk 0:00:03]}  Qxg2 {[%clk 0:01:31]} 47. Qc8+ {[%clk 0:00:02]}  Kb5 {[%clk 0:01:31]} 48. Qd7+ {[%clk 0:00:01]}  Qc6 {[%clk 0:01:31]} 49. Qd3+ {[%clk 0:00:02]}  Kb6 {[%clk 0:01:30]} 50. Qc3 {[%clk 0:00:03]}  Qd5+ {[%clk 0:01:29]} 51. Kf4 {[%clk 0:00:03]}  Qd4+ {[%clk 0:01:29]} 52. Qxd4 {[%clk 0:00:03]}  cxd4 {[%clk 0:01:30]} 0-1


[Site "https://www.chess.com"]

[Event "Titled Tuesday Blitz May 11 2021"]
[White "Keymer, Vincent"]
[Black "Wagner, Dennis"]
[WhiteFideId "12940690"]
[BlackFideId "24650684"]
[WhiteElo "2474"]
[BlackElo "2355"]
[Result "1-0"]
[Round "09"]
[TimeControl "180+1"]
[Date "2021.05.11"]
[WhiteClock "0:00:10"]
[BlackClock "0:00:01"]

1. Nf3 {[%clk 0:03:00]}  Nf6 {[%clk 0:02:59]} 2. c4 {[%clk 0:03:01]}  c5 {[%clk 0:02:59]} 3. Nc3 {[%clk 0:03:02]}  e6 {[%clk 0:02:59]} 4. g3 {[%clk 0:03:01]}  d5 {[%clk 0:02:58]} 5. cxd5 {[%clk 0:03:01]}  exd5 {[%clk 0:02:59]} 6. d4 {[%clk 0:03:01]}  Nc6 {[%clk 0:03:00]} 7. Bg2 {[%clk 0:03:02]}  cxd4 {[%clk 0:03:00]} 8. Nxd4 {[%clk 0:03:03]}  Bc5 {[%clk 0:03:00]} 9. Nb3 {[%clk 0:03:03]}  Bb6 {[%clk 0:03:00]} 10. Na4 {[%clk 0:03:04]}  O-O {[%clk 0:02:54]} 11. Nxb6 {[%clk 0:03:04]}  axb6 {[%clk 0:02:55]} 12. Be3 {[%clk 0:03:04]}  h5 {[%clk 0:02:56]} 13. O-O {[%clk 0:02:54]}  h4 {[%clk 0:02:54]} 14. a3 {[%clk 0:02:51]}  Re8 {[%clk 0:02:48]} 15. Rc1 {[%clk 0:02:47]}  h3 {[%clk 0:02:37]} 16. Bh1 {[%clk 0:02:46]}  Bg4 {[%clk 0:02:36]} 17. Re1 {[%clk 0:02:44]}  Rxe3 {[%clk 0:01:44]} 18. fxe3 {[%clk 0:02:45]}  Qe7 {[%clk 0:01:45]} 19. Qd2 {[%clk 0:02:31]}  Ne4 {[%clk 0:01:40]} 20. Qxd5 {[%clk 0:01:49]}  Nc5 {[%clk 0:01:38]} 21. Nxc5 {[%clk 0:01:36]}  Qxe3+ {[%clk 0:01:34]} 22. Kf1 {[%clk 0:01:37]}  Bxe2+ {[%clk 0:01:23]} 23. Rxe2 {[%clk 0:01:27]}  Qxc1+ {[%clk 0:01:23]} 24. Re1 {[%clk 0:01:27]}  Qxc5 {[%clk 0:01:24]} 25. Qxc5 {[%clk 0:01:26]}  bxc5 {[%clk 0:01:25]} 26. Rc1 {[%clk 0:01:24]}  Rd8 {[%clk 0:00:54]} 27. Bxc6 {[%clk 0:01:13]}  bxc6 {[%clk 0:00:54]} 28. Ke2 {[%clk 0:01:14]}  Rb8 {[%clk 0:00:38]} 29. Rc2 {[%clk 0:01:13]}  Rb3 {[%clk 0:00:35]} 30. Kd1 {[%clk 0:00:56]}  f6 {[%clk 0:00:35]} 31. Kc1 {[%clk 0:00:56]}  Rf3 {[%clk 0:00:33]} 32. Kb1 {[%clk 0:00:55]}  Rf1+ {[%clk 0:00:32]} 33. Ka2 {[%clk 0:00:55]}  Kf7 {[%clk 0:00:24]} 34. a4 {[%clk 0:00:42]}  Ke6 {[%clk 0:00:24]} 35. Rd2 {[%clk 0:00:36]}  Rg1 {[%clk 0:00:20]} 36. a5 {[%clk 0:00:33]}  Rg2 {[%clk 0:00:21]} 37. Rd1 {[%clk 0:00:29]}  Re2 {[%clk 0:00:09]} 38. a6 {[%clk 0:00:20]}  Kf7 {[%clk 0:00:08]} 39. Kb3 {[%clk 0:00:19]}  Re8 {[%clk 0:00:07]} 40. Kc4 {[%clk 0:00:19]}  Ra8 {[%clk 0:00:06]} 41. Ra1 {[%clk 0:00:19]}  Ke6 {[%clk 0:00:07]} 42. Kxc5 {[%clk 0:00:19]}  Kd7 {[%clk 0:00:07]} 43. b4 {[%clk 0:00:17]}  Kc7 {[%clk 0:00:06]} 44. Ra2 {[%clk 0:00:17]}  g5 {[%clk 0:00:05]} 45. g4 {[%clk 0:00:17]}  Rb8 {[%clk 0:00:05]} 46. a7 {[%clk 0:00:13]}  Ra8 {[%clk 0:00:05]} 47. Ra3 {[%clk 0:00:13]}  Kb7 {[%clk 0:00:03]} 48. Rxh3 {[%clk 0:00:13]}  Ka6 {[%clk 0:00:02]} 49. Ra3+ {[%clk 0:00:11]}  Kb7 {[%clk 0:00:03]} 50. Re3 {[%clk 0:00:11]}  Ka6 {[%clk 0:00:03]} 51. Re7 {[%clk 0:00:11]}  f5 {[%clk 0:00:01]} 52. gxf5 {[%clk 0:00:11]}  g4 {[%clk 0:00:01]} 53. f6 {[%clk 0:00:12]}  Rh8 {[%clk 0:00:01]} 54. f7 {[%clk 0:00:11]}  g3 {[%clk 0:00:01]} 55. hxg3 {[%clk 0:00:11]}  Rh5+ {[%clk 0:00:01]} 56. Kd4 {[%clk 0:00:10]}  Rd5+ {[%clk 0:00:02]} 57. Kc4 {[%clk 0:00:10]}  Rg5 {[%clk 0:00:01]} 58. a8=Q+ {[%clk 0:00:10]} 1-0


[Site "https://www.chess.com"]

[Event "Titled Tuesday Blitz May 11 2021"]
[White "Martinez Alcantara, Jose Eduardo"]
[Black "Chigaev, Maksim"]
[WhiteFideId "3805662"]
[BlackFideId "4108116"]
[WhiteElo "2690"]
[BlackElo "2646"]
[Result "1-0"]
[Round "09"]
[TimeControl "180+1"]
[Date "2021.05.11"]
[WhiteClock "0:00:23"]
[BlackClock "0:00:01"]

1. e4 {[%clk 0:03:00]}  g6 {[%clk 0:02:59]} 2. d4 {[%clk 0:03:00]}  Bg7 {[%clk 0:03:00]} 3. c3 {[%clk 0:02:57]}  d6 {[%clk 0:03:00]} 4. f4 {[%clk 0:02:55]}  Nf6 {[%clk 0:03:00]} 5. Bd3 {[%clk 0:02:55]}  O-O {[%clk 0:03:01]} 6. Nf3 {[%clk 0:02:55]}  Nc6 {[%clk 0:02:45]} 7. e5 {[%clk 0:02:52]}  Nd5 {[%clk 0:02:44]} 8. O-O {[%clk 0:02:49]}  dxe5 {[%clk 0:02:37]} 9. fxe5 {[%clk 0:02:42]}  f6 {[%clk 0:02:38]} 10. exf6 {[%clk 0:02:41]}  exf6 {[%clk 0:02:38]} 11. Nbd2 {[%clk 0:02:27]}  f5 {[%clk 0:02:26]} 12. Re1 {[%clk 0:02:21]}  Kh8 {[%clk 0:02:26]} 13. Nc4 {[%clk 0:02:19]}  f4 {[%clk 0:02:20]} 14. Bd2 {[%clk 0:02:14]}  Bf5 {[%clk 0:02:16]} 15. Qe2 {[%clk 0:02:08]}  Bxd3 {[%clk 0:02:03]} 16. Qxd3 {[%clk 0:02:08]}  Qd7 {[%clk 0:02:03]} 17. Nce5 {[%clk 0:02:01]}  Nxe5 {[%clk 0:02:03]} 18. Nxe5 {[%clk 0:02:01]}  Qd6 {[%clk 0:01:45]} 19. b4 {[%clk 0:01:39]}  c6 {[%clk 0:01:41]} 20. h4 {[%clk 0:01:35]}  Kg8 {[%clk 0:01:37]} 21. Re2 {[%clk 0:01:18]}  b5 {[%clk 0:01:10]} 22. a4 {[%clk 0:01:10]}  a6 {[%clk 0:01:04]} 23. a5 {[%clk 0:01:07]}  Bxe5 {[%clk 0:00:33]} 24. Rxe5 {[%clk 0:01:08]}  Rae8 {[%clk 0:00:32]} 25. Rae1 {[%clk 0:01:08]}  Rxe5 {[%clk 0:00:32]} 26. Rxe5 {[%clk 0:01:09]}  f3 {[%clk 0:00:30]} 27. gxf3 {[%clk 0:01:02]}  Qf6 {[%clk 0:00:30]} 28. Bh6 {[%clk 0:00:54]}  Qxh4 {[%clk 0:00:12]} 29. Bxf8 {[%clk 0:00:47]}  Qg3+ {[%clk 0:00:12]} 30. Kf1 {[%clk 0:00:43]}  Kxf8 {[%clk 0:00:11]} 31. Qe4 {[%clk 0:00:37]}  Qh3+ {[%clk 0:00:08]} 32. Kg1 {[%clk 0:00:33]}  Qg3+ {[%clk 0:00:08]} 33. Kf1 {[%clk 0:00:32]}  Qh3+ {[%clk 0:00:08]} 34. Ke1 {[%clk 0:00:31]}  Nxc3 {[%clk 0:00:01]} 35. Qf4+ {[%clk 0:00:23]}  Kg8 {[%clk 0:00:01]} 36. Re8+ {[%clk 0:00:23]} 1-0


[Site "https://www.chess.com"]

[Event "Titled Tuesday Blitz May 11 2021"]
[White "Oparin, Grigoriy"]
[Black "Matlakov, Maxim"]
[WhiteFideId "24125890"]
[BlackFideId "4168003"]
[WhiteElo "2628"]
[BlackElo "2760"]
[Result "1-0"]
[Round "09"]
[TimeControl "180+1"]
[Date "2021.05.11"]
[WhiteClock "0:01:55"]
[BlackClock "0:00:14"]

1. Nf3 {[%clk 0:03:00]}  Nf6 {[%clk 0:02:55]} 2. g3 {[%clk 0:03:01]}  g6 {[%clk 0:02:55]} 3. Bg2 {[%clk 0:03:01]}  Bg7 {[%clk 0:02:56]} 4. c4 {[%clk 0:03:02]}  O-O {[%clk 0:02:54]} 5. Nc3 {[%clk 0:03:03]}  d6 {[%clk 0:02:51]} 6. O-O {[%clk 0:03:02]}  e5 {[%clk 0:02:50]} 7. d4 {[%clk 0:03:02]}  Nc6 {[%clk 0:02:50]} 8. dxe5 {[%clk 0:03:02]}  dxe5 {[%clk 0:02:44]} 9. Bg5 {[%clk 0:03:02]}  Be6 {[%clk 0:02:39]} 10. Qa4 {[%clk 0:03:03]}  Qc8 {[%clk 0:02:38]} 11. Nd2 {[%clk 0:03:02]}  Nd7 {[%clk 0:02:28]} 12. Bxc6 {[%clk 0:02:56]}  Nb6 {[%clk 0:02:22]} 13. Qb5 {[%clk 0:02:56]}  a6 {[%clk 0:02:16]} 14. Qc5 {[%clk 0:02:55]}  bxc6 {[%clk 0:02:16]} 15. Qxc6 {[%clk 0:02:56]}  h6 {[%clk 0:01:52]} 16. Be3 {[%clk 0:02:53]}  Rd8 {[%clk 0:01:52]} 17. Rfd1 {[%clk 0:02:50]}  Rb8 {[%clk 0:01:51]} 18. b3 {[%clk 0:02:40]}  Bd7 {[%clk 0:01:45]} 19. Qh1 {[%clk 0:02:33]}  Bg4 {[%clk 0:01:42]} 20. Nde4 {[%clk 0:02:23]}  f5 {[%clk 0:01:41]} 21. h3 {[%clk 0:02:23]}  Bh5 {[%clk 0:01:41]} 22. g4 {[%clk 0:02:08]}  Rxd1+ {[%clk 0:01:34]} 23. Rxd1 {[%clk 0:02:07]}  fxg4 {[%clk 0:01:34]} 24. h4 {[%clk 0:02:08]}  Qe6 {[%clk 0:01:04]} 25. Ng3 {[%clk 0:02:05]}  Bf6 {[%clk 0:00:55]} 26. Nce4 {[%clk 0:02:00]}  Bg7 {[%clk 0:00:52]} 27. Nc5 {[%clk 0:01:59]}  Qf7 {[%clk 0:00:53]} 28. Qc6 {[%clk 0:01:56]}  Rf8 {[%clk 0:00:48]} 29. Nce4 {[%clk 0:01:54]}  Kh8 {[%clk 0:00:19]} 30. c5 {[%clk 0:01:54]}  Nc8 {[%clk 0:00:18]} 31. Rd7 {[%clk 0:01:55]}  Qg8 {[%clk 0:00:14]} 32. Qxc7 {[%clk 0:01:55]} 1-0


[Site "https://www.chess.com"]

[Event "Titled Tuesday Blitz May 11 2021"]
[White "Petriashvili, Nikoloz"]
[Black "Aditya Mittal"]
[WhiteFideId "13611216"]
[BlackFideId "35042025"]
[WhiteElo "2430"]
[BlackElo "2171"]
[Result "0-1"]
[Round "09"]
[TimeControl "180+1"]
[Date "2021.05.11"]
[WhiteClock "0:00:10"]
[BlackClock "0:00:17"]

1. d4 {[%clk 0:03:00]}  Nf6 {[%clk 0:02:59]} 2. c4 {[%clk 0:02:59]}  e6 {[%clk 0:03:00]} 3. g3 {[%clk 0:02:59]}  d5 {[%clk 0:03:00]} 4. Bg2 {[%clk 0:02:59]}  dxc4 {[%clk 0:03:00]} 5. Nf3 {[%clk 0:02:59]}  a6 {[%clk 0:03:01]} 6. Ne5 {[%clk 0:02:57]}  Bb4+ {[%clk 0:02:59]} 7. Nc3 {[%clk 0:02:56]}  Nd5 {[%clk 0:02:59]} 8. Bd2 {[%clk 0:02:34]}  Bxc3 {[%clk 0:02:58]} 9. bxc3 {[%clk 0:02:34]}  b5 {[%clk 0:02:57]} 10. O-O {[%clk 0:02:33]}  O-O {[%clk 0:02:37]} 11. e4 {[%clk 0:02:32]}  Nb6 {[%clk 0:02:30]} 12. h4 {[%clk 0:02:32]}  Bb7 {[%clk 0:02:27]} 13. h5 {[%clk 0:02:32]}  N8d7 {[%clk 0:02:19]} 14. h6 {[%clk 0:02:28]}  g6 {[%clk 0:01:58]} 15. Qf3 {[%clk 0:02:15]}  f6 {[%clk 0:01:55]} 16. Nxd7 {[%clk 0:02:12]}  Qxd7 {[%clk 0:01:56]} 17. Qe2 {[%clk 0:02:08]}  f5 {[%clk 0:01:47]} 18. Rae1 {[%clk 0:02:06]}  Rae8 {[%clk 0:01:41]} 19. f3 {[%clk 0:01:52]}  Na4 {[%clk 0:01:32]} 20. g4 {[%clk 0:01:51]}  c5 {[%clk 0:01:27]} 21. gxf5 {[%clk 0:01:49]}  exf5 {[%clk 0:01:24]} 22. Qe3 {[%clk 0:01:24]}  f4 {[%clk 0:01:07]} 23. Qf2 {[%clk 0:01:24]}  Nb2 {[%clk 0:01:02]} 24. d5 {[%clk 0:01:18]}  Nd3 {[%clk 0:01:00]} 25. Qh4 {[%clk 0:01:18]}  Bc8 {[%clk 0:00:44]} 26. Re2 {[%clk 0:01:16]}  Re5 {[%clk 0:00:42]} 27. Qg4 {[%clk 0:00:18]}  Qd8 {[%clk 0:00:27]} 28. Qxc8 {[%clk 0:00:08]}  Qxc8 {[%clk 0:00:27]} 29. Be1 {[%clk 0:00:08]}  Rh5 {[%clk 0:00:27]} 30. Bf2 {[%clk 0:00:08]}  Re8 {[%clk 0:00:21]} 31. Rd1 {[%clk 0:00:08]}  Rxh6 {[%clk 0:00:21]} 32. Red2 {[%clk 0:00:05]}  Qd8 {[%clk 0:00:22]} 33. Bf1 {[%clk 0:00:05]}  Qg5+ {[%clk 0:00:20]} 34. Bg2 {[%clk 0:00:05]}  Qe5 {[%clk 0:00:15]} 35. Rxd3 {[%clk 0:00:06]}  cxd3 {[%clk 0:00:16]} 36. Rxd3 {[%clk 0:00:06]}  c4 {[%clk 0:00:17]} 37. Rd4 {[%clk 0:00:07]}  Rh5 {[%clk 0:00:17]} 38. Kf1 {[%clk 0:00:07]}  Rg5 {[%clk 0:00:17]} 39. Bh4 {[%clk 0:00:07]}  Rxg2 {[%clk 0:00:15]} 40. Kxg2 {[%clk 0:00:08]}  g5 {[%clk 0:00:15]} 41. Be1 {[%clk 0:00:08]}  h5 {[%clk 0:00:15]} 42. Bf2 {[%clk 0:00:07]}  g4 {[%clk 0:00:16]} 43. d6 {[%clk 0:00:08]}  Rd8 {[%clk 0:00:15]} 44. Rd5 {[%clk 0:00:07]}  Qxd5 {[%clk 0:00:15]} 45. exd5 {[%clk 0:00:07]}  Rxd6 {[%clk 0:00:16]} 46. Bc5 {[%clk 0:00:07]}  Rxd5 {[%clk 0:00:16]} 47. Bb4 {[%clk 0:00:08]}  Rd3 {[%clk 0:00:16]} 48. Kf1 {[%clk 0:00:08]}  Rxf3+ {[%clk 0:00:15]} 49. Ke2 {[%clk 0:00:09]}  Rd3 {[%clk 0:00:16]} 50. a3 {[%clk 0:00:09]}  Kf7 {[%clk 0:00:15]} 51. Kf2 {[%clk 0:00:10]}  Ke6 {[%clk 0:00:16]} 52. Ke2 {[%clk 0:00:10]}  Kf5 {[%clk 0:00:17]} 0-1


[Site "https://www.chess.com"]

[Event "Titled Tuesday Blitz May 11 2021"]
[White "Petrovskyi, Vadym"]
[Black "Ivanisevic, Ivan"]
[WhiteFideId "14165210"]
[BlackFideId "912417"]
[WhiteElo "2219"]
[BlackElo "2499"]
[Result "0-1"]
[Round "09"]
[TimeControl "180+1"]
[Date "2021.05.11"]
[WhiteClock "0:01:17"]
[BlackClock "0:02:04"]

1. e4 {[%clk 0:03:00]}  e5 {[%clk 0:02:59]} 2. Nf3 {[%clk 0:03:00]}  Nc6 {[%clk 0:02:59]} 3. d4 {[%clk 0:03:00]}  exd4 {[%clk 0:02:59]} 4. Bc4 {[%clk 0:03:00]}  d6 {[%clk 0:02:37]} 5. O-O {[%clk 0:02:59]}  Nf6 {[%clk 0:02:35]} 6. Nxd4 {[%clk 0:02:53]}  Be7 {[%clk 0:02:34]} 7. Nc3 {[%clk 0:02:53]}  O-O {[%clk 0:02:34]} 8. Bf4 {[%clk 0:02:39]}  Ne5 {[%clk 0:02:32]} 9. Be2 {[%clk 0:02:32]}  Re8 {[%clk 0:02:31]} 10. Qd2 {[%clk 0:02:25]}  Bf8 {[%clk 0:02:28]} 11. f3 {[%clk 0:02:24]}  Ng6 {[%clk 0:02:26]} 12. Be3 {[%clk 0:02:23]}  c6 {[%clk 0:02:25]} 13. Rfe1 {[%clk 0:02:21]}  Bd7 {[%clk 0:02:17]} 14. Rad1 {[%clk 0:02:19]}  b5 {[%clk 0:02:17]} 15. a3 {[%clk 0:02:13]}  a5 {[%clk 0:02:18]} 16. Nf5 {[%clk 0:02:12]}  d5 {[%clk 0:02:15]} 17. Bg5 {[%clk 0:02:03]}  b4 {[%clk 0:02:14]} 18. Na4 {[%clk 0:01:39]}  h6 {[%clk 0:02:12]} 19. Bxf6 {[%clk 0:01:32]}  Qxf6 {[%clk 0:02:13]} 20. Kh1 {[%clk 0:01:21]}  Bxf5 {[%clk 0:02:08]} 21. exf5 {[%clk 0:01:22]}  Qxf5 {[%clk 0:02:08]} 22. Bd3 {[%clk 0:01:22]}  Qf4 {[%clk 0:02:07]} 23. Nb6 {[%clk 0:01:17]}  Qxd2 {[%clk 0:02:04]} 0-1


[Site "https://www.chess.com"]

[Event "Titled Tuesday Blitz May 11 2021"]
[White "Postny, Evgeny"]
[Black "Yoo, Christopher Woojin"]
[WhiteFideId "2804344"]
[BlackFideId "30909694"]
[WhiteElo "2537"]
[BlackElo "2009"]
[Result "0-1"]
[Round "09"]
[TimeControl "180+1"]
[Date "2021.05.11"]
[WhiteClock "0:00:02"]
[BlackClock "0:01:26"]

1. Nf3 {[%clk 0:03:00]}  Nf6 {[%clk 0:02:59]} 2. c4 {[%clk 0:03:01]}  e6 {[%clk 0:02:58]} 3. g3 {[%clk 0:03:02]}  d5 {[%clk 0:02:58]} 4. Bg2 {[%clk 0:03:02]}  Be7 {[%clk 0:02:59]} 5. O-O {[%clk 0:03:03]}  O-O {[%clk 0:02:59]} 6. d4 {[%clk 0:03:02]}  dxc4 {[%clk 0:03:00]} 7. Qc2 {[%clk 0:03:02]}  b5 {[%clk 0:03:00]} 8. a4 {[%clk 0:03:00]}  b4 {[%clk 0:03:00]} 9. Nfd2 {[%clk 0:02:58]}  Nd5 {[%clk 0:02:59]} 10. Nxc4 {[%clk 0:02:57]}  c5 {[%clk 0:02:59]} 11. dxc5 {[%clk 0:02:54]}  Ba6 {[%clk 0:02:58]} 12. Nbd2 {[%clk 0:02:48]}  Bxc5 {[%clk 0:02:45]} 13. Ne4 {[%clk 0:02:39]}  Be7 {[%clk 0:02:45]} 14. b3 {[%clk 0:02:32]}  f5 {[%clk 0:02:44]} 15. Ned2 {[%clk 0:02:29]}  Nc6 {[%clk 0:02:43]} 16. Bb2 {[%clk 0:02:27]}  Bf6 {[%clk 0:02:43]} 17. Rad1 {[%clk 0:02:21]}  Bxb2 {[%clk 0:02:34]} 18. Qxb2 {[%clk 0:02:17]}  Rc8 {[%clk 0:02:28]} 19. Nf3 {[%clk 0:02:06]}  Qf6 {[%clk 0:02:24]} 20. Qxf6 {[%clk 0:02:02]}  gxf6 {[%clk 0:02:25]} 21. Nd6 {[%clk 0:00:56]}  Rcd8 {[%clk 0:01:59]} 22. Nb5 {[%clk 0:00:55]}  Nc3 {[%clk 0:01:51]} 23. Nxc3 {[%clk 0:00:46]}  bxc3 {[%clk 0:01:52]} 24. Rxd8 {[%clk 0:00:43]}  Rxd8 {[%clk 0:01:51]} 25. Rc1 {[%clk 0:00:43]}  Bxe2 {[%clk 0:01:51]} 26. Ne1 {[%clk 0:00:32]}  Nb4 {[%clk 0:01:40]} 27. f4 {[%clk 0:00:20]}  Rd1 {[%clk 0:01:29]} 28. Rxc3 {[%clk 0:00:18]}  Nd3 {[%clk 0:01:29]} 29. Rxd3 {[%clk 0:00:09]}  Bxd3 {[%clk 0:01:29]} 30. Kf2 {[%clk 0:00:09]}  Be4 {[%clk 0:01:29]} 31. Bf1 {[%clk 0:00:07]}  Rb1 {[%clk 0:01:28]} 32. Bc4 {[%clk 0:00:07]}  Kf7 {[%clk 0:01:28]} 33. Nf3 {[%clk 0:00:02]}  Rb2+ {[%clk 0:01:28]} 34. Ke3 {[%clk 0:00:03]}  Bxf3 {[%clk 0:01:27]} 35. Kxf3 {[%clk 0:00:03]}  Rxh2 {[%clk 0:01:27]} 36. b4 {[%clk 0:00:02]}  Rc2 {[%clk 0:01:26]} 0-1


[Site "https://www.chess.com"]

[Event "Titled Tuesday Blitz May 11 2021"]
[White "Shimanov, Aleksandr"]
[Black "Quintiliano Pinto, Renato R."]
[WhiteFideId "4198603"]
[BlackFideId "2117568"]
[WhiteElo "2596"]
[BlackElo "2439"]
[Result "1-0"]
[Round "09"]
[TimeControl "180+1"]
[Date "2021.05.11"]
[WhiteClock "0:00:10"]
[BlackClock "0:00:08"]

1. Nf3 {[%clk 0:03:00]}  d5 {[%clk 0:02:59]} 2. c4 {[%clk 0:02:56]}  e6 {[%clk 0:02:58]} 3. d4 {[%clk 0:02:55]}  Nf6 {[%clk 0:02:59]} 4. Nc3 {[%clk 0:02:54]}  c6 {[%clk 0:02:57]} 5. Bg5 {[%clk 0:02:51]}  h6 {[%clk 0:02:57]} 6. Bh4 {[%clk 0:02:51]}  Nbd7 {[%clk 0:02:54]} 7. e3 {[%clk 0:02:43]}  g5 {[%clk 0:02:54]} 8. Bg3 {[%clk 0:02:42]}  Nh5 {[%clk 0:02:54]} 9. cxd5 {[%clk 0:02:34]}  exd5 {[%clk 0:02:53]} 10. Bd3 {[%clk 0:02:34]}  Nxg3 {[%clk 0:02:52]} 11. hxg3 {[%clk 0:02:33]}  Bg7 {[%clk 0:02:53]} 12. Qc2 {[%clk 0:02:32]}  Nb6 {[%clk 0:02:48]} 13. O-O-O {[%clk 0:02:32]}  Be6 {[%clk 0:02:46]} 14. Ne5 {[%clk 0:02:31]}  Qc7 {[%clk 0:02:29]} 15. f4 {[%clk 0:02:30]}  O-O-O {[%clk 0:02:28]} 16. Kb1 {[%clk 0:02:27]}  Kb8 {[%clk 0:02:26]} 17. Rhf1 {[%clk 0:02:16]}  f6 {[%clk 0:02:05]} 18. Nf3 {[%clk 0:02:15]}  Rhe8 {[%clk 0:02:02]} 19. Nd2 {[%clk 0:02:09]}  a6 {[%clk 0:01:51]} 20. Rde1 {[%clk 0:02:06]}  c5 {[%clk 0:01:46]} 21. dxc5 {[%clk 0:02:05]}  Qxc5 {[%clk 0:01:47]} 22. Nb3 {[%clk 0:02:05]}  Qc7 {[%clk 0:01:39]} 23. Nd4 {[%clk 0:02:05]}  Bc8 {[%clk 0:01:27]} 24. Qf2 {[%clk 0:01:32]}  Bf8 {[%clk 0:01:07]} 25. Rc1 {[%clk 0:01:31]}  Bc5 {[%clk 0:00:49]} 26. Rfd1 {[%clk 0:01:01]}  Qe7 {[%clk 0:00:39]} 27. Re1 {[%clk 0:01:00]}  Bd7 {[%clk 0:00:33]} 28. Bg6 {[%clk 0:00:36]}  Rg8 {[%clk 0:00:25]} 29. Bd3 {[%clk 0:00:36]}  Qd6 {[%clk 0:00:22]} 30. Red1 {[%clk 0:00:32]}  Rge8 {[%clk 0:00:20]} 31. Ka1 {[%clk 0:00:29]}  Rc8 {[%clk 0:00:20]} 32. Be2 {[%clk 0:00:26]}  Qe7 {[%clk 0:00:17]} 33. Bf3 {[%clk 0:00:24]}  Qxe3 {[%clk 0:00:17]} 34. Qxe3 {[%clk 0:00:23]}  Rxe3 {[%clk 0:00:18]} 35. Nb3 {[%clk 0:00:16]}  Be6 {[%clk 0:00:12]} 36. fxg5 {[%clk 0:00:08]}  hxg5 {[%clk 0:00:12]} 37. g4 {[%clk 0:00:09]}  d4 {[%clk 0:00:12]} 38. Nxd4 {[%clk 0:00:09]}  Bxd4 {[%clk 0:00:12]} 39. Rxd4 {[%clk 0:00:10]}  Bd7 {[%clk 0:00:11]} 40. Rd6 {[%clk 0:00:10]}  Rf8 {[%clk 0:00:08]} 41. Rxb6 {[%clk 0:00:10]} 1-0


[Site "https://www.chess.com"]